[Event "Titled Tuesday Blitz June 27 Late 2023"]
[White "Bulgurlu, Okan"]
[Black "Vega Gutierrez, Sabrina"]
[WhiteFideId "6352316"]
[BlackFideId "2219026"]
[WhiteElo "2288"]
[BlackElo "2392"]
[Result "0-1"]
[Round "10"]
[TimeControl "180+2"]
[Date "2023.06.27"]
[WhiteClock "0:00:00"]
[BlackClock "0:00:07"]
[Board "93"]

1. e4 {[%clk 0:03:00]}  c5 {[%clk 0:02:59]} 2. Nf3 {[%clk 0:03:00]}  Nc6 {[%clk 0:03:00]} 3. d4 {[%clk 0:03:00]}  cxd4 {[%clk 0:03:01]} 4. Nxd4 {[%clk 0:03:00]}  Nf6 {[%clk 0:03:01]} 5. Nc3 {[%clk 0:02:59]}  e5 {[%clk 0:03:02]} 6. Ndb5 {[%clk 0:02:59]}  d6 {[%clk 0:03:02]} 7. Bg5 {[%clk 0:02:58]}  a6 {[%clk 0:03:03]} 8. Na3 {[%clk 0:02:58]}  b5 {[%clk 0:03:04]} 9. Nd5 {[%clk 0:02:57]}  Be7 {[%clk 0:03:03]} 10. Bxf6 {[%clk 0:02:56]}  Bxf6 {[%clk 0:03:04]} 11. c4 {[%clk 0:02:55]}  b4 {[%clk 0:03:03]} 12. Nc2 {[%clk 0:02:54]}  O-O {[%clk 0:03:04]} 13. Qf3 {[%clk 0:02:30]}  Bg5 {[%clk 0:02:55]} 14. h4 {[%clk 0:02:30]}  Bh6 {[%clk 0:02:55]} 15. g4 {[%clk 0:02:27]}  f6 {[%clk 0:02:56]} 16. Ncxb4 {[%clk 0:01:57]}  Nxb4 {[%clk 0:02:33]} 17. Nxb4 {[%clk 0:01:58]}  Qb6 {[%clk 0:02:33]} 18. Nd5 {[%clk 0:01:17]}  Qxb2 {[%clk 0:02:32]} 19. Rd1 {[%clk 0:01:18]}  Be6 {[%clk 0:02:27]} 20. Be2 {[%clk 0:01:03]}  Bxd5 {[%clk 0:02:02]} 21. Rxd5 {[%clk 0:01:04]}  Qb1+ {[%clk 0:01:22]} 22. Rd1 {[%clk 0:01:02]}  Qxa2 {[%clk 0:01:13]} 23. O-O {[%clk 0:01:03]}  Bf4 {[%clk 0:01:13]} 24. Rxd6 {[%clk 0:00:51]}  a5 {[%clk 0:01:00]} 25. Qd3 {[%clk 0:00:41]}  a4 {[%clk 0:00:57]} 26. c5 {[%clk 0:00:39]}  Rfc8 {[%clk 0:00:46]} 27. Qb5 {[%clk 0:00:32]}  Kh8 {[%clk 0:00:39]} 28. Rfd1 {[%clk 0:00:30]}  Qc2 {[%clk 0:00:38]} 29. Qb7 {[%clk 0:00:06]}  h5 {[%clk 0:00:33]} 30. Rd7 {[%clk 0:00:04]}  Qxe2 {[%clk 0:00:27]} 31. Rxg7 {[%clk 0:00:02]}  Qxd1+ {[%clk 0:00:27]} 32. Kg2 {[%clk 0:00:02]}  Qxg4+ {[%clk 0:00:17]} 33. Rxg4 {[%clk 0:00:03]}  hxg4 {[%clk 0:00:18]} 34. Qf7 {[%clk 0:00:03]}  Rf8 {[%clk 0:00:16]} 35. Qg6 {[%clk 0:00:03]}  a3 {[%clk 0:00:14]} 36. Qh5+ {[%clk 0:00:03]}  Kg7 {[%clk 0:00:14]} 37. Qf5 {[%clk 0:00:04]}  a2 {[%clk 0:00:12]} 38. Qxg4+ {[%clk 0:00:02]}  Kf7 {[%clk 0:00:12]} 39. Qd7+ {[%clk 0:00:03]}  Kg6 {[%clk 0:00:08]} 40. Qg4+ {[%clk 0:00:03]}  Kh6 {[%clk 0:00:08]} 41. h5 {[%clk 0:00:00]}  Rg8 {[%clk 0:00:07]} 0-1


[Site "https://www.chess.com"]

[Event "Titled Tuesday Blitz June 27 Late 2023"]
[White "Cluke86"]
[Black "Haitin, Ilja"]
[BlackFideId "4501764"]
[WhiteElo "2263"]
[BlackElo "2358"]
[Result "1-0"]
[Round "10"]
[TimeControl "180+2"]
[Date "2023.06.27"]
[WhiteClock "0:00:09"]
[BlackClock "0:00:06"]
[Board "95"]

1. e4 {[%clk 0:02:58]}  c5 {[%clk 0:02:57]} 2. Nc3 {[%clk 0:02:55]}  d6 {[%clk 0:02:54]} 3. f4 {[%clk 0:02:51]}  g6 {[%clk 0:02:53]} 4. Nf3 {[%clk 0:02:49]}  Bg7 {[%clk 0:02:53]} 5. Bc4 {[%clk 0:02:48]}  a6 {[%clk 0:02:53]} 6. a4 {[%clk 0:02:47]}  Nc6 {[%clk 0:02:51]} 7. d3 {[%clk 0:02:44]}  Nd4 {[%clk 0:02:50]} 8. Nxd4 {[%clk 0:02:30]}  Bxd4 {[%clk 0:02:49]} 9. a5 {[%clk 0:02:27]}  Nf6 {[%clk 0:02:47]} 10. h3 {[%clk 0:02:24]}  Nh5 {[%clk 0:02:46]} 11. Ne2 {[%clk 0:02:22]}  e5 {[%clk 0:02:44]} 12. c3 {[%clk 0:02:21]}  Qh4+ {[%clk 0:02:42]} 13. Kd2 {[%clk 0:02:08]}  Bf2 {[%clk 0:02:38]} 14. fxe5 {[%clk 0:02:04]}  dxe5 {[%clk 0:02:35]} 15. Kc2 {[%clk 0:01:59]}  O-O {[%clk 0:02:34]} 16. Rf1 {[%clk 0:01:54]}  Bd7 {[%clk 0:02:31]} 17. Bh6 {[%clk 0:01:35]}  Rfd8 {[%clk 0:02:29]} 18. g3 {[%clk 0:01:26]}  Nxg3 {[%clk 0:01:56]} 19. Rxf2 {[%clk 0:01:25]}  Nf5 {[%clk 0:01:38]} 20. exf5 {[%clk 0:01:06]}  Qxf2 {[%clk 0:01:32]} 21. fxg6 {[%clk 0:01:05]}  hxg6 {[%clk 0:01:33]} 22. Qd2 {[%clk 0:01:00]}  Bf5 {[%clk 0:01:21]} 23. Be3 {[%clk 0:00:55]}  Qf3 {[%clk 0:01:19]} 24. Rg1 {[%clk 0:00:53]}  Kg7 {[%clk 0:01:12]} 25. Rg3 {[%clk 0:00:52]}  Qh1 {[%clk 0:01:09]} 26. Bxc5 {[%clk 0:00:44]}  Rac8 {[%clk 0:01:06]} 27. b4 {[%clk 0:00:43]}  Qa1 {[%clk 0:01:03]} 28. Nc1 {[%clk 0:00:43]}  Qa4+ {[%clk 0:00:58]} 29. Bb3 {[%clk 0:00:43]}  Qb5 {[%clk 0:00:55]} 30. Bb6 {[%clk 0:00:29]}  Rd7 {[%clk 0:00:49]} 31. h4 {[%clk 0:00:29]}  e4 {[%clk 0:00:47]} 32. h5 {[%clk 0:00:21]}  Qxb4 {[%clk 0:00:41]} 33. hxg6 {[%clk 0:00:16]}  fxg6 {[%clk 0:00:37]} 34. Kb2 {[%clk 0:00:14]}  Qe7 {[%clk 0:00:24]} 35. Bd4+ {[%clk 0:00:12]}  Rxd4 {[%clk 0:00:24]} 36. cxd4 {[%clk 0:00:13]}  exd3 {[%clk 0:00:23]} 37. Nxd3 {[%clk 0:00:13]}  Qc7 {[%clk 0:00:17]} 38. Ne5 {[%clk 0:00:13]}  Qd6 {[%clk 0:00:12]} 39. Rc3 {[%clk 0:00:12]}  Re8 {[%clk 0:00:11]} 40. Rc5 {[%clk 0:00:10]}  Qd8 {[%clk 0:00:10]} 41. Qc3 {[%clk 0:00:10]}  Qh4 {[%clk 0:00:09]} 42. Rc7+ {[%clk 0:00:11]}  Kh8 {[%clk 0:00:09]} 43. Nf7+ {[%clk 0:00:10]}  Kg7 {[%clk 0:00:08]} 44. Ne5+ {[%clk 0:00:10]}  Kh8 {[%clk 0:00:07]} 45. Nxg6+ {[%clk 0:00:09]}  Bxg6 {[%clk 0:00:07]} 46. d5+ {[%clk 0:00:10]}  Kg8 {[%clk 0:00:06]} 47. Qg7# {[%clk 0:00:09]} 1-0


[Site "https://www.chess.com"]

[Event "Titled Tuesday Blitz June 27 Late 2023"]
[White "Sanchez, Robert"]
[Black "Muhammed, Shuaau"]
[WhiteFideId "2034360"]
[BlackFideId "16700406"]
[WhiteElo "2126"]
[BlackElo "2351"]
[Result "1-0"]
[Round "10"]
[TimeControl "180+2"]
[Date "2023.06.27"]
[WhiteClock "0:01:24"]
[BlackClock "0:00:51"]
[Board "97"]

1. e4 {[%clk 0:03:00]}  e5 {[%clk 0:02:57]} 2. Nf3 {[%clk 0:03:00]}  Nc6 {[%clk 0:02:57]} 3. Bb5 {[%clk 0:03:00]}  a6 {[%clk 0:02:56]} 4. Ba4 {[%clk 0:03:00]}  Nf6 {[%clk 0:02:56]} 5. d3 {[%clk 0:03:00]}  d6 {[%clk 0:02:53]} 6. c3 {[%clk 0:03:00]}  g6 {[%clk 0:02:52]} 7. O-O {[%clk 0:03:00]}  Bg7 {[%clk 0:02:48]} 8. Re1 {[%clk 0:03:01]}  O-O {[%clk 0:02:46]} 9. h3 {[%clk 0:03:01]}  b5 {[%clk 0:02:42]} 10. Bc2 {[%clk 0:03:00]}  Bb7 {[%clk 0:02:39]} 11. Nbd2 {[%clk 0:03:00]}  Ne7 {[%clk 0:02:38]} 12. Nf1 {[%clk 0:03:01]}  c5 {[%clk 0:02:38]} 13. Ng3 {[%clk 0:03:01]}  Re8 {[%clk 0:02:35]} 14. Be3 {[%clk 0:03:01]}  Qc7 {[%clk 0:02:33]} 15. Qd2 {[%clk 0:02:57]}  d5 {[%clk 0:02:28]} 16. Bh6 {[%clk 0:02:55]}  dxe4 {[%clk 0:02:26]} 17. dxe4 {[%clk 0:02:50]}  c4 {[%clk 0:02:17]} 18. Bxg7 {[%clk 0:02:49]}  Kxg7 {[%clk 0:02:17]} 19. Nh4 {[%clk 0:02:44]}  h6 {[%clk 0:02:05]} 20. Rf1 {[%clk 0:02:31]}  Rad8 {[%clk 0:02:04]} 21. Qe3 {[%clk 0:02:30]}  Nd7 {[%clk 0:01:56]} 22. f4 {[%clk 0:02:21]}  exf4 {[%clk 0:01:55]} 23. Rxf4 {[%clk 0:02:21]}  Ne5 {[%clk 0:01:46]} 24. Raf1 {[%clk 0:02:17]}  Kg8 {[%clk 0:01:22]} 25. R4f2 {[%clk 0:02:07]}  Kg7 {[%clk 0:01:21]} 26. Nhf5+ {[%clk 0:01:29]}  gxf5 {[%clk 0:01:19]} 27. exf5 {[%clk 0:01:29]}  f6 {[%clk 0:01:15]} 28. Nh5+ {[%clk 0:01:26]}  Kf7 {[%clk 0:00:56]} 29. Qxh6 {[%clk 0:01:26]}  Qb6 {[%clk 0:00:51]} 30. Qg7# {[%clk 0:01:24]} 1-0


[Site "https://www.chess.com"]

[Event "Titled Tuesday Blitz June 27 Late 2023"]
[White "Vasquez Garrido, Nuremberg"]
[Black "Andersson, Bjorn 1971"]
[WhiteFideId "4432118"]
[BlackFideId "1702114"]
[WhiteElo "2080"]
[BlackElo "2341"]
[Result "1-0"]
[Round "10"]
[TimeControl "180+2"]
[Date "2023.06.27"]
[WhiteClock "0:00:51"]
[BlackClock "0:00:13"]
[Board "99"]

1. d4 {[%clk 0:02:58]}  c5 {[%clk 0:03:00]} 2. e3 {[%clk 0:02:58]}  b6 {[%clk 0:03:00]} 3. Bd3 {[%clk 0:02:58]}  Bb7 {[%clk 0:02:59]} 4. Nf3 {[%clk 0:02:58]}  cxd4 {[%clk 0:02:58]} 5. exd4 {[%clk 0:02:57]}  g6 {[%clk 0:02:58]} 6. Bg5 {[%clk 0:02:56]}  h6 {[%clk 0:02:58]} 7. Bh4 {[%clk 0:02:53]}  g5 {[%clk 0:02:58]} 8. Bg3 {[%clk 0:02:54]}  Bg7 {[%clk 0:02:57]} 9. c3 {[%clk 0:02:53]}  d6 {[%clk 0:02:54]} 10. O-O {[%clk 0:02:51]}  Nf6 {[%clk 0:02:51]} 11. Nbd2 {[%clk 0:02:43]}  Nh5 {[%clk 0:02:49]} 12. Qe2 {[%clk 0:02:42]}  Nd7 {[%clk 0:02:34]} 13. Bxd6 {[%clk 0:02:39]}  O-O {[%clk 0:02:24]} 14. Bxe7 {[%clk 0:02:37]}  Nf4 {[%clk 0:02:14]} 15. Bxd8 {[%clk 0:02:35]}  Nxe2+ {[%clk 0:02:13]} 16. Bxe2 {[%clk 0:02:36]}  Raxd8 {[%clk 0:02:12]} 17. Rfe1 {[%clk 0:02:34]}  f5 {[%clk 0:02:08]} 18. Bc4+ {[%clk 0:02:28]}  Kh8 {[%clk 0:02:04]} 19. Re7 {[%clk 0:02:29]}  Bf6 {[%clk 0:02:00]} 20. Re6 {[%clk 0:02:25]}  g4 {[%clk 0:01:58]} 21. Nh4 {[%clk 0:02:20]}  Bxh4 {[%clk 0:01:38]} 22. Rxh6+ {[%clk 0:02:19]}  Kg7 {[%clk 0:01:37]} 23. Rxh4 {[%clk 0:02:19]}  Kg6 {[%clk 0:01:35]} 24. Re1 {[%clk 0:02:09]}  Nf6 {[%clk 0:01:35]} 25. Re7 {[%clk 0:01:53]}  Rd7 {[%clk 0:01:22]} 26. Rxd7 {[%clk 0:01:49]}  Nxd7 {[%clk 0:01:22]} 27. h3 {[%clk 0:01:33]}  Nf6 {[%clk 0:01:19]} 28. hxg4 {[%clk 0:01:29]}  fxg4 {[%clk 0:01:19]} 29. Bd3+ {[%clk 0:01:26]}  Kg5 {[%clk 0:01:17]} 30. g3 {[%clk 0:01:25]}  Re8 {[%clk 0:01:10]} 31. Kf1 {[%clk 0:01:23]}  Nh5 {[%clk 0:00:44]} 32. Be2 {[%clk 0:01:16]}  Bc8 {[%clk 0:00:37]} 33. f4+ {[%clk 0:01:09]}  gxf3 {[%clk 0:00:35]} 34. Nxf3+ {[%clk 0:01:08]}  Kg6 {[%clk 0:00:32]} 35. Ne5+ {[%clk 0:01:02]}  Rxe5 {[%clk 0:00:32]} 36. dxe5 {[%clk 0:01:01]}  Nxg3+ {[%clk 0:00:32]} 37. Kf2 {[%clk 0:01:02]}  Nf5 {[%clk 0:00:27]} 38. Bd3 {[%clk 0:01:00]}  Kg5 {[%clk 0:00:27]} 39. Bxf5 {[%clk 0:00:59]}  Bxf5 {[%clk 0:00:25]} 40. Rd4 {[%clk 0:00:58]}  Be6 {[%clk 0:00:20]} 41. Ra4 {[%clk 0:00:51]}  Kf5 {[%clk 0:00:21]} 42. Rxa7 {[%clk 0:00:51]}  Kxe5 {[%clk 0:00:21]} 43. Ke3 {[%clk 0:00:52]}  Kd6 {[%clk 0:00:19]} 44. Ra6 {[%clk 0:00:51]}  Kc7 {[%clk 0:00:18]} 45. a4 {[%clk 0:00:52]}  Bc4 {[%clk 0:00:18]} 46. Ra7+ {[%clk 0:00:51]}  Kc6 {[%clk 0:00:17]} 47. b4 {[%clk 0:00:51]}  Bb3 {[%clk 0:00:17]} 48. Kd4 {[%clk 0:00:51]}  Bc4 {[%clk 0:00:15]} 49. b5+ {[%clk 0:00:51]}  Kd6 {[%clk 0:00:13]} 50. Kxc4 {[%clk 0:00:51]} 1-0


[Site "https://www.chess.com"]

[Event "Titled Tuesday Blitz June 27 Late 2023"]
[White "Kujawski, Adam"]
[Black "Cooper, Aaron"]
[WhiteFideId "1100920"]
[BlackFideId "2634945"]
[WhiteElo "2328"]
[BlackElo "2182"]
[Result "0-1"]
[Round "10"]
[TimeControl "180+2"]
[Date "2023.06.27"]
[WhiteClock "0:00:01"]
[BlackClock "0:00:07"]
[Board "101"]

1. e4 {[%clk 0:03:00]}  d5 {[%clk 0:02:59]} 2. exd5 {[%clk 0:03:00]}  Qxd5 {[%clk 0:03:00]} 3. Nc3 {[%clk 0:03:00]}  Qd6 {[%clk 0:03:00]} 4. d4 {[%clk 0:03:00]}  Nf6 {[%clk 0:03:00]} 5. Bc4 {[%clk 0:02:59]}  a6 {[%clk 0:02:59]} 6. Bb3 {[%clk 0:02:59]}  b5 {[%clk 0:02:55]} 7. Qf3 {[%clk 0:02:59]}  Nc6 {[%clk 0:02:51]} 8. Bf4 {[%clk 0:02:55]}  Qd7 {[%clk 0:02:33]} 9. Nd5 {[%clk 0:02:08]}  Nxd5 {[%clk 0:02:25]} 10. Qxd5 {[%clk 0:01:31]}  e6 {[%clk 0:02:24]} 11. Qxd7+ {[%clk 0:01:26]}  Bxd7 {[%clk 0:02:25]} 12. c3 {[%clk 0:01:26]}  Bd6 {[%clk 0:02:24]} 13. Ne2 {[%clk 0:01:26]}  Ke7 {[%clk 0:02:20]} 14. a4 {[%clk 0:01:15]}  Na5 {[%clk 0:02:17]} 15. Bc2 {[%clk 0:01:05]}  Rhb8 {[%clk 0:01:56]} 16. O-O {[%clk 0:01:04]}  bxa4 {[%clk 0:01:38]} 17. Rfb1 {[%clk 0:01:00]}  Nb3 {[%clk 0:01:37]} 18. Ra2 {[%clk 0:00:51]}  Bb5 {[%clk 0:01:34]} 19. Bxd6+ {[%clk 0:00:43]}  cxd6 {[%clk 0:01:35]} 20. Nc1 {[%clk 0:00:34]}  Nd2 {[%clk 0:01:13]} 21. Rba1 {[%clk 0:00:33]}  Bc6 {[%clk 0:01:13]} 22. f3 {[%clk 0:00:23]}  Nc4 {[%clk 0:01:11]} 23. Nd3 {[%clk 0:00:19]}  a5 {[%clk 0:01:03]} 24. Kf2 {[%clk 0:00:17]}  Bd5 {[%clk 0:00:54]} 25. Ke2 {[%clk 0:00:12]}  g5 {[%clk 0:00:52]} 26. Bxa4 {[%clk 0:00:11]}  Nb6 {[%clk 0:00:33]} 27. b3 {[%clk 0:00:09]}  Nxa4 {[%clk 0:00:32]} 28. Rxa4 {[%clk 0:00:09]}  Rxb3 {[%clk 0:00:29]} 29. Rxa5 {[%clk 0:00:09]}  Rxa5 {[%clk 0:00:25]} 30. Rxa5 {[%clk 0:00:10]}  Bc4 {[%clk 0:00:26]} 31. Ra7+ {[%clk 0:00:10]}  Kf6 {[%clk 0:00:25]} 32. Kd2 {[%clk 0:00:10]}  Bxd3 {[%clk 0:00:20]} 33. Kxd3 {[%clk 0:00:10]}  Rb2 {[%clk 0:00:21]} 34. c4 {[%clk 0:00:11]}  Rxg2 {[%clk 0:00:20]} 35. c5 {[%clk 0:00:11]}  dxc5 {[%clk 0:00:19]} 36. dxc5 {[%clk 0:00:11]}  Rg1 {[%clk 0:00:16]} 37. Kc2 {[%clk 0:00:09]}  Rf1 {[%clk 0:00:14]} 38. c6 {[%clk 0:00:07]}  Rf2+ {[%clk 0:00:14]} 39. Kc3 {[%clk 0:00:07]}  Rxf3+ {[%clk 0:00:14]} 40. Kd2 {[%clk 0:00:07]}  Rf5 {[%clk 0:00:14]} 41. c7 {[%clk 0:00:03]}  Rc5 {[%clk 0:00:14]} 42. Kd3 {[%clk 0:00:03]}  h5 {[%clk 0:00:14]} 43. Kd4 {[%clk 0:00:04]}  Rc6 {[%clk 0:00:14]} 44. Ke4 {[%clk 0:00:03]}  h4 {[%clk 0:00:14]} 45. h3 {[%clk 0:00:03]}  Kg6 {[%clk 0:00:14]} 46. Kf3 {[%clk 0:00:03]}  f5 {[%clk 0:00:14]} 47. Ke3 {[%clk 0:00:03]}  g4 {[%clk 0:00:14]} 48. Kf4 {[%clk 0:00:03]}  gxh3 {[%clk 0:00:14]} 49. Kf3 {[%clk 0:00:03]}  h2 {[%clk 0:00:14]} 50. Kg2 {[%clk 0:00:03]}  Rc2+ {[%clk 0:00:14]} 51. Kh1 {[%clk 0:00:03]}  f4 {[%clk 0:00:14]} 52. c8=Q {[%clk 0:00:03]}  Rxc8 {[%clk 0:00:14]} 53. Kxh2 {[%clk 0:00:02]}  Kf5 {[%clk 0:00:14]} 54. Kh3 {[%clk 0:00:02]}  Rc3+ {[%clk 0:00:13]} 55. Kg2 {[%clk 0:00:02]}  h3+ {[%clk 0:00:13]} 56. Kf2 {[%clk 0:00:02]}  h2 {[%clk 0:00:13]} 57. Rh7 {[%clk 0:00:02]}  e5 {[%clk 0:00:12]} 58. Ke2 {[%clk 0:00:02]}  e4 {[%clk 0:00:11]} 59. Kd2 {[%clk 0:00:02]}  Rd3+ {[%clk 0:00:11]} 60. Kc2 {[%clk 0:00:02]}  f3 {[%clk 0:00:04]} 61. Rxh2 {[%clk 0:00:03]}  Kf4 {[%clk 0:00:04]} 62. Rh4+ {[%clk 0:00:03]}  Ke3 {[%clk 0:00:04]} 63. Rh8 {[%clk 0:00:03]}  Rd2+ {[%clk 0:00:05]} 64. Kc1 {[%clk 0:00:03]}  Rd3 {[%clk 0:00:05]} 65. Rg8 {[%clk 0:00:03]}  f2 {[%clk 0:00:06]} 66. Rg3+ {[%clk 0:00:04]}  Ke2 {[%clk 0:00:07]} 67. Re3+ {[%clk 0:00:01]}  Kxe3 {[%clk 0:00:07]} 0-1


[Site "https://www.chess.com"]

[Event "Titled Tuesday Blitz June 27 Late 2023"]
[White "Vila Dupla, Aurelio"]
[Black "Ricaurte Lopez, Juan Carlos"]
[WhiteFideId "2203383"]
[BlackFideId "3600327"]
[WhiteElo "2186"]
[BlackElo "2109"]
[Result "1-0"]
[Round "10"]
[TimeControl "180+2"]
[Date "2023.06.27"]
[WhiteClock "0:00:21"]
[BlackClock "0:00:08"]
[Board "107"]

1. e4 {[%clk 0:02:53]}  e5 {[%clk 0:02:59]} 2. f4 {[%clk 0:02:46]}  d5 {[%clk 0:02:56]} 3. exd5 {[%clk 0:02:44]}  e4 {[%clk 0:02:56]} 4. d3 {[%clk 0:02:44]}  Nf6 {[%clk 0:02:55]} 5. Qe2 {[%clk 0:02:44]}  Bg4 {[%clk 0:02:48]} 6. Nf3 {[%clk 0:02:25]}  Qxd5 {[%clk 0:02:40]} 7. Nc3 {[%clk 0:02:24]}  Bb4 {[%clk 0:02:38]} 8. Bd2 {[%clk 0:02:13]}  Bxc3 {[%clk 0:02:34]} 9. Bxc3 {[%clk 0:02:13]}  O-O {[%clk 0:02:33]} 10. dxe4 {[%clk 0:02:12]}  Nxe4 {[%clk 0:02:31]} 11. Qd3 {[%clk 0:01:55]}  Nxc3 {[%clk 0:02:26]} 12. bxc3 {[%clk 0:01:52]}  Re8+ {[%clk 0:02:22]} 13. Be2 {[%clk 0:01:38]}  Bxf3 {[%clk 0:02:14]} 14. Qxf3 {[%clk 0:01:29]}  Qxf3 {[%clk 0:02:12]} 15. gxf3 {[%clk 0:01:29]}  Nd7 {[%clk 0:02:07]} 16. Kf2 {[%clk 0:01:28]}  Re7 {[%clk 0:02:05]} 17. Bc4 {[%clk 0:01:24]}  Rae8 {[%clk 0:02:03]} 18. Rad1 {[%clk 0:01:20]}  Nb6 {[%clk 0:02:00]} 19. Bd3 {[%clk 0:01:20]}  c5 {[%clk 0:01:41]} 20. Be4 {[%clk 0:01:18]}  g6 {[%clk 0:01:39]} 21. f5 {[%clk 0:01:14]}  Kg7 {[%clk 0:01:36]} 22. fxg6 {[%clk 0:01:14]}  hxg6 {[%clk 0:01:35]} 23. Rhg1 {[%clk 0:01:02]}  Nc4 {[%clk 0:01:31]} 24. h4 {[%clk 0:00:58]}  Kf6 {[%clk 0:01:23]} 25. Rd5 {[%clk 0:00:57]}  b6 {[%clk 0:01:20]} 26. h5 {[%clk 0:00:55]}  Re5 {[%clk 0:01:17]} 27. hxg6 {[%clk 0:00:47]}  fxg6 {[%clk 0:00:50]} 28. Rxg6+ {[%clk 0:00:45]}  Ke7 {[%clk 0:00:49]} 29. Rg7+ {[%clk 0:00:41]}  Kf6 {[%clk 0:00:47]} 30. Rxe5 {[%clk 0:00:39]}  Rxe5 {[%clk 0:00:44]} 31. Rxa7 {[%clk 0:00:39]}  Rh5 {[%clk 0:00:41]} 32. Ra6 {[%clk 0:00:38]}  Ke5 {[%clk 0:00:35]} 33. Bd3 {[%clk 0:00:36]}  b5 {[%clk 0:00:25]} 34. a4 {[%clk 0:00:31]}  Nd6 {[%clk 0:00:18]} 35. Bxb5 {[%clk 0:00:27]}  Rh2+ {[%clk 0:00:14]} 36. Kg3 {[%clk 0:00:25]}  Rxc2 {[%clk 0:00:15]} 37. f4+ {[%clk 0:00:22]}  Kf6 {[%clk 0:00:08]} 38. Rxd6+ {[%clk 0:00:21]} 1-0


[Site "https://www.chess.com"]

[Event "Titled Tuesday Blitz June 27 Late 2023"]
[White "Allam, Yara"]
[Black "Cardenas Carbajal, Nilson"]
[WhiteFideId "10615709"]
[BlackFideId "8401128"]
[WhiteElo "2067"]
[BlackElo "2103"]
[Result "1/2-1/2"]
[Round "10"]
[TimeControl "180+2"]
[Date "2023.06.27"]
[WhiteClock "0:00:16"]
[BlackClock "0:00:15"]
[Board "110"]

1. e4 {[%clk 0:03:00]}  c5 {[%clk 0:02:59]} 2. Nf3 {[%clk 0:03:00]}  d6 {[%clk 0:02:59]} 3. d4 {[%clk 0:03:01]}  cxd4 {[%clk 0:03:00]} 4. Nxd4 {[%clk 0:03:01]}  Nf6 {[%clk 0:03:00]} 5. Nc3 {[%clk 0:03:02]}  a6 {[%clk 0:03:00]} 6. f3 {[%clk 0:03:00]}  e5 {[%clk 0:03:00]} 7. Nb3 {[%clk 0:02:59]}  Be7 {[%clk 0:03:00]} 8. Be3 {[%clk 0:03:00]}  Be6 {[%clk 0:03:00]} 9. Qd2 {[%clk 0:03:00]}  O-O {[%clk 0:02:59]} 10. g4 {[%clk 0:03:00]}  d5 {[%clk 0:02:59]} 11. exd5 {[%clk 0:02:56]}  Nxd5 {[%clk 0:02:57]} 12. Nxd5 {[%clk 0:02:56]}  Bxd5 {[%clk 0:02:56]} 13. Be2 {[%clk 0:02:55]}  Bh4+ {[%clk 0:02:56]} 14. Kf1 {[%clk 0:02:50]}  Nc6 {[%clk 0:02:50]} 15. Rd1 {[%clk 0:02:40]}  Bxb3 {[%clk 0:02:25]} 16. axb3 {[%clk 0:02:29]}  Qf6 {[%clk 0:02:18]} 17. Kg2 {[%clk 0:02:26]}  Rad8 {[%clk 0:02:16]} 18. Qc3 {[%clk 0:02:20]}  Nd4 {[%clk 0:02:08]} 19. Bxd4 {[%clk 0:02:15]}  exd4 {[%clk 0:02:09]} 20. Qb4 {[%clk 0:02:10]}  Rfe8 {[%clk 0:02:07]} 21. Rd2 {[%clk 0:02:02]}  Bg5 {[%clk 0:02:02]} 22. Rhd1 {[%clk 0:01:56]}  Bxd2 {[%clk 0:02:01]} 23. Rxd2 {[%clk 0:01:52]}  Re3 {[%clk 0:02:01]} 24. Qxb7 {[%clk 0:01:45]}  Rde8 {[%clk 0:01:57]} 25. Qxa6 {[%clk 0:01:42]}  Qf4 {[%clk 0:01:27]} 26. Qc4 {[%clk 0:01:25]}  Rxf3 {[%clk 0:01:24]} 27. Bxf3 {[%clk 0:01:08]}  Qxd2+ {[%clk 0:01:22]} 28. Kh3 {[%clk 0:00:56]}  h5 {[%clk 0:01:21]} 29. gxh5 {[%clk 0:00:50]}  Qf4 {[%clk 0:01:05]} 30. Qc6 {[%clk 0:00:39]}  Re3 {[%clk 0:00:57]} 31. Kg2 {[%clk 0:00:38]}  Qg5+ {[%clk 0:00:52]} 32. Kf1 {[%clk 0:00:28]}  Qf4 {[%clk 0:00:46]} 33. Kg2 {[%clk 0:00:25]}  Kh7 {[%clk 0:00:39]} 34. b4 {[%clk 0:00:20]}  Qg5+ {[%clk 0:00:36]} 35. Kf1 {[%clk 0:00:20]}  Qh4 {[%clk 0:00:32]} 36. Kg2 {[%clk 0:00:19]}  Qe1 {[%clk 0:00:25]} 37. b5 {[%clk 0:00:19]}  Qd2+ {[%clk 0:00:22]} 38. Kg3 {[%clk 0:00:17]}  Qe1+ {[%clk 0:00:21]} 39. Kg2 {[%clk 0:00:15]}  Qd2+ {[%clk 0:00:19]} 40. Kg3 {[%clk 0:00:15]}  Qe1+ {[%clk 0:00:15]} 41. Kg2 {[%clk 0:00:16]} 1/2-1/2


[Site "https://www.chess.com"]

[Event "Titled Tuesday Blitz June 27 Late 2023"]
[White "Sainz Aguirre, Ignacio"]
[Black "campochess"]
[WhiteFideId "5101727"]
[WhiteElo "1959"]
[BlackElo "2135"]
[Result "0-1"]
[Round "10"]
[TimeControl "180+2"]
[Date "2023.06.27"]
[WhiteClock "0:00:04"]
[BlackClock "0:00:24"]
[Board "111"]

1. e4 {[%clk 0:03:00]}  c5 {[%clk 0:02:59]} 2. Nf3 {[%clk 0:03:00]}  Nc6 {[%clk 0:02:59]} 3. Bb5 {[%clk 0:02:58]}  e6 {[%clk 0:02:57]} 4. O-O {[%clk 0:02:56]}  Nge7 {[%clk 0:02:57]} 5. c3 {[%clk 0:02:54]}  a6 {[%clk 0:02:56]} 6. Ba4 {[%clk 0:02:53]}  b5 {[%clk 0:02:55]} 7. Bc2 {[%clk 0:02:53]}  d5 {[%clk 0:02:55]} 8. exd5 {[%clk 0:02:48]}  Nxd5 {[%clk 0:02:53]} 9. a4 {[%clk 0:02:46]}  Rb8 {[%clk 0:02:47]} 10. d4 {[%clk 0:02:42]}  cxd4 {[%clk 0:02:44]} 11. Nxd4 {[%clk 0:02:38]}  Nxd4 {[%clk 0:02:35]} 12. Qxd4 {[%clk 0:02:38]}  Qf6 {[%clk 0:02:32]} 13. Qa7 {[%clk 0:02:32]}  Rb6 {[%clk 0:02:23]} 14. Qa8 {[%clk 0:01:59]}  Qd8 {[%clk 0:02:15]} 15. axb5 {[%clk 0:01:59]}  axb5 {[%clk 0:02:10]} 16. Ra7 {[%clk 0:01:20]}  Bd6 {[%clk 0:02:06]} 17. Rd1 {[%clk 0:01:02]}  O-O {[%clk 0:02:04]} 18. Rxd5 {[%clk 0:00:47]}  exd5 {[%clk 0:02:01]} 19. Be3 {[%clk 0:00:43]}  Rb8 {[%clk 0:01:58]} 20. Qc6 {[%clk 0:00:41]}  Be6 {[%clk 0:01:41]} 21. Na3 {[%clk 0:00:41]}  b4 {[%clk 0:01:40]} 22. Nb5 {[%clk 0:00:39]}  Rxb5 {[%clk 0:01:29]} 23. Qxb5 {[%clk 0:00:39]}  bxc3 {[%clk 0:01:28]} 24. bxc3 {[%clk 0:00:37]}  Qh4 {[%clk 0:01:27]} 25. g3 {[%clk 0:00:35]}  Qh3 {[%clk 0:01:26]} 26. Qf1 {[%clk 0:00:32]}  Qh5 {[%clk 0:01:24]} 27. Qd3 {[%clk 0:00:28]}  g6 {[%clk 0:01:20]} 28. Bd4 {[%clk 0:00:22]}  Bf5 {[%clk 0:01:13]} 29. Qd2 {[%clk 0:00:21]}  Bg4 {[%clk 0:01:03]} 30. Qe1 {[%clk 0:00:14]}  Bf3 {[%clk 0:01:02]} 31. Qf1 {[%clk 0:00:13]}  Qg5 {[%clk 0:00:57]} 32. Bd1 {[%clk 0:00:13]}  Be4 {[%clk 0:00:54]} 33. f3 {[%clk 0:00:11]}  Bf5 {[%clk 0:00:51]} 34. Be2 {[%clk 0:00:10]}  Qd2 {[%clk 0:00:50]} 35. Bb5 {[%clk 0:00:08]}  Bb8 {[%clk 0:00:40]} 36. Rb7 {[%clk 0:00:07]}  h5 {[%clk 0:00:30]} 37. g4 {[%clk 0:00:04]}  Qxh2# {[%clk 0:00:24]} 0-1


[Site "https://www.chess.com"]